[Event "*** SCC Grand Prix: Titled Tuesday Blitz"]
[Site "Chess.com"]
[Date "2020.09.08"]
[Round "2"]
[White "GM_Levan_Pantsulaia"]
[Black "Machidon"]
[Result "1-0"]
[WhiteElo "2864"]
[BlackElo "2551"]
[TimeControl "180+1"]
[EndTime "10:19:14 PDT"]
[Termination "GM_Levan_Pantsulaia won by resignation"]

1. Nf3 {[%clk 0:03:00.9]} 1... Nf6 {[%clk 0:02:59.7]} 2. g3 {[%clk 0:03:01.1]}
2... d5 {[%clk 0:02:59.3]} 3. Bg2 {[%clk 0:03:00.7]} 3... g6 {[%clk 0:02:58.7]}
4. c4 {[%clk 0:02:59.3]} 4... c6 {[%clk 0:02:58.3]} 5. b3 {[%clk 0:02:59.4]}
5... Bg7 {[%clk 0:02:58.3]} 6. Bb2 {[%clk 0:02:59.7]} 6... O-O {[%clk
0:02:58.8]} 7. d3 {[%clk 0:02:59.7]} 7... a5 {[%clk 0:02:59.2]} 8. Nbd2 {[%clk
0:02:59.5]} 8... Na6 {[%clk 0:02:51.9]} 9. a3 {[%clk 0:02:58.5]} 9... Bf5 {[%clk
0:02:44.5]} 10. O-O {[%clk 0:02:57.8]} 10... Qc8 {[%clk 0:02:43.2]} 11. Rc1
{[%clk 0:02:53.8]} 11... Bh3 {[%clk 0:02:27.7]} 12. Bxf6 {[%clk 0:02:07.2]}
12... Bxf6 {[%clk 0:02:25.3]} 13. cxd5 {[%clk 0:02:07]} 13... Bxg2 {[%clk
0:02:25.6]} 14. Kxg2 {[%clk 0:02:07.1]} 14... Bb2 {[%clk 0:02:25.7]} 15. Rb1
{[%clk 0:01:53.3]} 15... Bxa3 {[%clk 0:02:24.4]} 16. Nc4 {[%clk 0:01:53.5]}
16... Bc5 {[%clk 0:02:19.4]} 17. dxc6 {[%clk 0:01:53.2]} 17... Qxc6 {[%clk
0:01:35]} 18. Nxa5 {[%clk 0:01:52.9]} 18... Qd7 {[%clk 0:01:35.5]} 19. Nc4
{[%clk 0:01:49.7]} 19... Nb4 {[%clk 0:01:31.8]} 20. Ra1 {[%clk 0:01:46.1]} 20...
Nc6 {[%clk 0:01:28.5]} 21. Qd2 {[%clk 0:01:17.8]} 21... Bd4 {[%clk 0:01:13.5]}
22. Nxd4 {[%clk 0:00:34.8]} 22... Qxd4 {[%clk 0:01:14.4]} 23. Rxa8 {[%clk
0:00:19.3]} 23... Rxa8 {[%clk 0:01:15.3]} 24. Rc1 {[%clk 0:00:19.6]} 24... b5
{[%clk 0:00:54.7]} 25. Ne3 {[%clk 0:00:18.8]} 25... Ne5 {[%clk 0:00:54]} 26. Qc3
{[%clk 0:00:18.2]} 26... Qd6 {[%clk 0:00:52.4]} 27. Qc5 {[%clk 0:00:17.9]} 27...
Ra2 {[%clk 0:00:30]} 28. Qxd6 {[%clk 0:00:17.6]} 28... exd6 {[%clk 0:00:29.9]}
29. Rc2 {[%clk 0:00:18.3]} 29... Ra3 {[%clk 0:00:25.6]} 30. b4 {[%clk
0:00:17.9]} 30... Rb3 {[%clk 0:00:21.3]} 31. Nd5 {[%clk 0:00:17.9]} 31... Kg7
{[%clk 0:00:21.2]} 32. f4 {[%clk 0:00:17.8]} 32... Ng4 {[%clk 0:00:21]} 33. Rc6
{[%clk 0:00:14.8]} 33... Rb2 {[%clk 0:00:20]} 34. h3 {[%clk 0:00:13.5]} 34...
Nh6 {[%clk 0:00:09]} 35. Kf3 {[%clk 0:00:10.5]} 35... Nf5 {[%clk 0:00:09.4]} 36.
e3 {[%clk 0:00:10.4]} 36... h5 {[%clk 0:00:09.4]} 37. g4 {[%clk 0:00:10]} 37...
hxg4+ {[%clk 0:00:10.3]} 38. hxg4 {[%clk 0:00:10.1]} 38... Nh4+ {[%clk
0:00:08.9]} 39. Kg3 {[%clk 0:00:10.4]} 39... g5 {[%clk 0:00:09.8]} 40. fxg5
{[%clk 0:00:09.3]} 40... Ng6 {[%clk 0:00:10.3]} 41. d4 {[%clk 0:00:09]} 41...
Nf8 {[%clk 0:00:09.7]} 42. Rxd6 {[%clk 0:00:08.8]} 42... Ne6 {[%clk 0:00:10.6]}
43. g6 {[%clk 0:00:09.2]} 43... Ng5 {[%clk 0:00:10.1]} 44. Kf4 {[%clk
0:00:06.8]} 44... Ne6+ {[%clk 0:00:09.7]} 45. Ke5 {[%clk 0:00:06.8]} 45... Kxg6
{[%clk 0:00:09.5]} 46. Nf4+ {[%clk 0:00:05.9]} 46... Kg5 {[%clk 0:00:09.4]} 47.
Nxe6+ {[%clk 0:00:06.8]} 47... fxe6 {[%clk 0:00:09.9]} 48. Kxe6 {[%clk 0:00:07]}
48... Rxb4 {[%clk 0:00:10.4]} 49. e4 {[%clk 0:00:07.2]} 49... Kxg4 {[%clk
0:00:09.7]} 50. e5 {[%clk 0:00:07.8]} 50... Kf4 {[%clk 0:00:10]} 51. Kf6 {[%clk
0:00:05.9]} 51... Rb2 {[%clk 0:00:05.5]} 52. e6 {[%clk 0:00:06]} 52... Rh2
{[%clk 0:00:04.8]} 53. Kg7 {[%clk 0:00:03.6]} 53... Rg2+ {[%clk 0:00:04.5]} 54.
Kf7 {[%clk 0:00:04]} 1-0

[Event "*** SCC Grand Prix: Titled Tuesday Blitz"]
[Site "Chess.com"]
[Date "2020.09.08"]
[Round "2"]
[White "emiliocordova"]
[Black "FLamps8"]
[Result "1-0"]
[WhiteElo "2776"]
[BlackElo "2514"]
[TimeControl "180+1"]
[EndTime "10:19:16 PDT"]
[Termination "emiliocordova won on time"]

1. d4 {[%clk 0:03:00.9]} 1... Nf6 {[%clk 0:02:59.9]} 2. Nf3 {[%clk 0:03:01.8]}
2... g6 {[%clk 0:03:00]} 3. c4 {[%clk 0:03:01.4]} 3... Bg7 {[%clk 0:03:00.5]} 4.
g3 {[%clk 0:03:02.3]} 4... d6 {[%clk 0:03:01]} 5. Bg2 {[%clk 0:03:03.2]} 5...
O-O {[%clk 0:03:01.7]} 6. O-O {[%clk 0:03:04.1]} 6... Nc6 {[%clk 0:03:02.1]} 7.
Nc3 {[%clk 0:03:05]} 7... a6 {[%clk 0:03:00.7]} 8. h3 {[%clk 0:03:02.2]} 8...
Rb8 {[%clk 0:03:01.2]} 9. Be3 {[%clk 0:03:02.1]} 9... b5 {[%clk 0:02:58.1]} 10.
Nd2 {[%clk 0:03:02]} 10... Bd7 {[%clk 0:02:53.9]} 11. Rc1 {[%clk 0:03:01.9]}
11... e5 {[%clk 0:02:45.7]} 12. d5 {[%clk 0:02:57.4]} 12... Ne7 {[%clk
0:02:40.2]} 13. Nce4 {[%clk 0:02:53.5]} 13... Nxe4 {[%clk 0:02:39.1]} 14. Nxe4
{[%clk 0:02:54.4]} 14... bxc4 {[%clk 0:02:32.9]} 15. Qd2 {[%clk 0:02:31.7]}
15... Nf5 {[%clk 0:02:16.8]} 16. Rc2 {[%clk 0:01:34.6]} 16... Nxe3 {[%clk
0:02:13.1]} 17. Qxe3 {[%clk 0:01:35.5]} 17... f5 {[%clk 0:02:05.4]} 18. Nd2
{[%clk 0:01:35.5]} 18... f4 {[%clk 0:01:49.5]} 19. Qa3 {[%clk 0:01:35.1]} 19...
fxg3 {[%clk 0:01:17.3]} 20. Qxg3 {[%clk 0:01:31.5]} 20... Rf4 {[%clk 0:01:10.6]}
21. e3 {[%clk 0:01:28.4]} 21... Rf5 {[%clk 0:01:09]} 22. Nxc4 {[%clk 0:01:27.4]}
22... Rg5 {[%clk 0:01:08]} 23. Qf3 {[%clk 0:01:08.9]} 23... e4 {[%clk
0:01:05.1]} 24. Qd1 {[%clk 0:00:59.5]} 24... Bxh3 {[%clk 0:01:03.5]} 25. f4
{[%clk 0:00:59.8]} 25... exf3 {[%clk 0:00:59.8]} 26. Qxf3 {[%clk 0:00:58.8]}
26... Bf5 {[%clk 0:00:43.7]} 27. e4 {[%clk 0:00:57.4]} 27... Bd4+ {[%clk
0:00:41.1]} 28. Ne3 {[%clk 0:00:57.4]} 28... Qe7 {[%clk 0:00:36.2]} 29. exf5
{[%clk 0:00:43.3]} 29... Bxe3+ {[%clk 0:00:35]} 30. Kh1 {[%clk 0:00:42.8]} 30...
Rxf5 {[%clk 0:00:31.2]} 31. Qg4 {[%clk 0:00:38.7]} 31... Rbf8 {[%clk 0:00:21.9]}
32. Rxf5 {[%clk 0:00:34.2]} 32... Rxf5 {[%clk 0:00:22.8]} 33. Re2 {[%clk
0:00:33.3]} 33... Re5 {[%clk 0:00:12.8]} 34. Bh3 {[%clk 0:00:28.5]} 34... Kg7
{[%clk 0:00:12.9]} 35. Qc8 {[%clk 0:00:22.8]} 35... Rxd5 {[%clk 0:00:10.6]} 36.
Be6 {[%clk 0:00:11.8]} 36... Rh5+ {[%clk 0:00:10]} 37. Rh2 {[%clk 0:00:12.3]}
37... Rxh2+ {[%clk 0:00:09.1]} 38. Kxh2 {[%clk 0:00:13.2]} 38... Bf4+ {[%clk
0:00:06.2]} 39. Kh3 {[%clk 0:00:12.5]} 39... Kh6 {[%clk 0:00:05.9]} 40. Qg8
{[%clk 0:00:08.7]} 40... Be5 {[%clk 0:00:03.8]} 41. b3 {[%clk 0:00:08.1]} 41...
Qf6 {[%clk 0:00:03.7]} 42. Qf7 {[%clk 0:00:07.9]} 42... Qxf7 {[%clk 0:00:03.6]}
43. Bxf7 {[%clk 0:00:08.8]} 43... Kg5 {[%clk 0:00:03.6]} 44. b4 {[%clk
0:00:07.2]} 44... h6 {[%clk 0:00:03.5]} 45. Bc4 {[%clk 0:00:07.3]} 45... Kf4
{[%clk 0:00:03.7]} 46. Bxa6 {[%clk 0:00:07.4]} 46... Ke4 {[%clk 0:00:03.3]} 47.
Bb7+ {[%clk 0:00:07.5]} 47... Kd4 {[%clk 0:00:03.4]} 48. b5 {[%clk 0:00:07.7]}
48... Kc5 {[%clk 0:00:03.6]} 49. Bc6 {[%clk 0:00:08.2]} 49... d5 {[%clk
0:00:02.8]} 50. Be8 {[%clk 0:00:07.6]} 50... g5 {[%clk 0:00:02.6]} 51. a4 {[%clk
0:00:07.5]} 51... d4 {[%clk 0:00:03.2]} 52. Bg6 {[%clk 0:00:08.1]} 52... Kb4
{[%clk 0:00:03.1]} 53. Bc2 {[%clk 0:00:07.3]} 53... Ka5 {[%clk 0:00:03.2]} 54.
Bd1 {[%clk 0:00:08.1]} 54... Kb4 {[%clk 0:00:03.5]} 55. Kg4 {[%clk 0:00:08.7]}
55... Bg7 {[%clk 0:00:03.3]} 56. Kh5 {[%clk 0:00:09.1]} 56... Bf8 {[%clk
0:00:04.2]} 57. Kg4 {[%clk 0:00:09.5]} 57... d3 {[%clk 0:00:03.4]} 58. Kh5
{[%clk 0:00:09.6]} 58... Kc3 {[%clk 0:00:03.8]} 59. a5 {[%clk 0:00:09.5]} 59...
Kd2 {[%clk 0:00:03.6]} 60. Bf3 {[%clk 0:00:09.2]} 60... Ke1 {[%clk 0:00:03.8]}
61. b6 {[%clk 0:00:08.1]} 61... cxb6 {[%clk 0:00:02.4]} 62. a6 {[%clk
0:00:08.4]} 62... d2 {[%clk 0:00:02.3]} 63. a7 {[%clk 0:00:08.3]} 63... d1=Q
{[%clk 0:00:01.8]} 64. Bxd1 {[%clk 0:00:08.5]} 64... Kxd1 {[%clk 0:00:02.1]} 65.
a8=Q {[%clk 0:00:08.3]} 65... Bc5 {[%clk 0:00:01.3]} 66. Qd5+ {[%clk 0:00:08.4]}
1-0

[Event "*** SCC Grand Prix: Titled Tuesday Blitz"]
[Site "Chess.com"]
[Date "2020.09.08"]
[Round "2"]
[White "penguingm1"]
[Black "Hasangatin_Ramil"]
[Result "1-0"]
[WhiteElo "2965"]
[BlackElo "2585"]
[TimeControl "180+1"]
[EndTime "10:19:29 PDT"]
[Termination "penguingm1 won by checkmate"]

1. d4 {[%clk 0:03:00.9]} 1... d5 {[%clk 0:02:57]} 2. Bf4 {[%clk 0:03:00.1]} 2...
Nf6 {[%clk 0:02:47.2]} 3. e3 {[%clk 0:03:00.1]} 3... c5 {[%clk 0:02:47]} 4. Nc3
{[%clk 0:03:00.1]} 4... cxd4 {[%clk 0:02:38.7]} 5. exd4 {[%clk 0:03:00]} 5... a6
{[%clk 0:02:38.7]} 6. Nf3 {[%clk 0:02:59.3]} 6... Nc6 {[%clk 0:02:38]} 7. Ne5
{[%clk 0:02:58.9]} 7... Bd7 {[%clk 0:02:38.2]} 8. g3 {[%clk 0:02:58.9]} 8... Rc8
{[%clk 0:02:33.4]} 9. Bg2 {[%clk 0:02:56.6]} 9... e6 {[%clk 0:02:32.9]} 10. O-O
{[%clk 0:02:55]} 10... Be7 {[%clk 0:02:32.4]} 11. Ne2 {[%clk 0:02:55.4]} 11...
O-O {[%clk 0:02:28.6]} 12. c3 {[%clk 0:02:55.9]} 12... Qb6 {[%clk 0:02:05.7]}
13. Rb1 {[%clk 0:02:51.5]} 13... Rfd8 {[%clk 0:02:03.5]} 14. Re1 {[%clk
0:02:47.1]} 14... Be8 {[%clk 0:02:03.3]} 15. Nc1 {[%clk 0:02:46.6]} 15... Nxe5
{[%clk 0:01:57.9]} 16. Bxe5 {[%clk 0:02:46.1]} 16... Nd7 {[%clk 0:01:43.9]} 17.
Bf4 {[%clk 0:02:14.4]} 17... Nf8 {[%clk 0:01:43.7]} 18. Nd3 {[%clk 0:02:14.3]}
18... Ng6 {[%clk 0:01:43.8]} 19. Be3 {[%clk 0:02:10.6]} 19... Bb5 {[%clk
0:01:43.8]} 20. h4 {[%clk 0:02:11.1]} 20... Bxd3 {[%clk 0:01:36.9]} 21. Qxd3
{[%clk 0:02:11.1]} 21... h6 {[%clk 0:01:30.4]} 22. Bh3 {[%clk 0:02:07.7]} 22...
Nf8 {[%clk 0:01:28.1]} 23. Bd2 {[%clk 0:02:06.3]} 23... Qc6 {[%clk 0:01:19.9]}
24. Re3 {[%clk 0:02:03.5]} 24... b5 {[%clk 0:01:20]} 25. Rbe1 {[%clk 0:02:03]}
25... a5 {[%clk 0:01:17.9]} 26. a3 {[%clk 0:01:56]} 26... b4 {[%clk 0:01:15]}
27. axb4 {[%clk 0:01:56.9]} 27... axb4 {[%clk 0:01:15.6]} 28. Rf3 {[%clk
0:01:57.5]} 28... bxc3 {[%clk 0:01:13.6]} 29. bxc3 {[%clk 0:01:58.4]} 29... Ra8
{[%clk 0:00:57.4]} 30. Qe3 {[%clk 0:01:50.1]} 30... Ra2 {[%clk 0:00:52.3]} 31.
Qf4 {[%clk 0:01:43.2]} 31... Qe8 {[%clk 0:00:52.7]} 32. Bc1 {[%clk 0:01:41.8]}
32... Nh7 {[%clk 0:00:37.7]} 33. Kg2 {[%clk 0:01:25.4]} 33... Nf6 {[%clk
0:00:37.7]} 34. Qe3 {[%clk 0:01:07.3]} 34... Rb8 {[%clk 0:00:32.9]} 35. Bxe6
{[%clk 0:00:29.3]} 35... Bf8 {[%clk 0:00:20.2]} 36. Rxf6 {[%clk 0:00:07.8]}
36... gxf6 {[%clk 0:00:16.4]} 37. Bxd5 {[%clk 0:00:08]} 37... Qxe3 {[%clk
0:00:14.3]} 38. Bxe3 {[%clk 0:00:08.9]} 38... Rc2 {[%clk 0:00:13.3]} 39. c4
{[%clk 0:00:09.2]} 39... Rd8 {[%clk 0:00:10.2]} 40. Rb1 {[%clk 0:00:08.2]} 40...
Rd7 {[%clk 0:00:06.7]} 41. Rb8 {[%clk 0:00:07.5]} 41... Kg7 {[%clk 0:00:06.9]}
42. Bxh6+ {[%clk 0:00:04.5]} 42... Kxh6 {[%clk 0:00:07.8]} 43. Rxf8 {[%clk
0:00:04.5]} 43... Kg7 {[%clk 0:00:04.7]} 44. Re8 {[%clk 0:00:04.7]} 44... Rd2
{[%clk 0:00:04.7]} 45. Re4 {[%clk 0:00:05]} 45... Rc7 {[%clk 0:00:03.2]} 46.
Rg4+ {[%clk 0:00:05]} 46... Kf8 {[%clk 0:00:02.7]} 47. Rf4 {[%clk 0:00:05.4]}
47... Kg7 {[%clk 0:00:02]} 48. h5 {[%clk 0:00:05.6]} 48... Ra7 {[%clk
0:00:01.6]} 49. h6+ {[%clk 0:00:05.6]} 49... Kxh6 {[%clk 0:00:01.9]} 50. Rxf6+
{[%clk 0:00:06.1]} 50... Kg7 {[%clk 0:00:02.4]} 51. Rf4 {[%clk 0:00:06.2]} 51...
f6 {[%clk 0:00:02.9]} 52. Be6 {[%clk 0:00:04.4]} 52... Ra3 {[%clk 0:00:02.9]}
53. d5 {[%clk 0:00:04.1]} 53... Rad3 {[%clk 0:00:02.3]} 54. c5 {[%clk
0:00:04.2]} 54... Rd4 {[%clk 0:00:01.4]} 55. Rf3 {[%clk 0:00:04]} 55... R4d3
{[%clk 0:00:01.2]} 56. Rf5 {[%clk 0:00:03.6]} 56... Rd4 {[%clk 0:00:01.2]} 57.
c6 {[%clk 0:00:04]} 57... Rc2 {[%clk 0:00:01.3]} 58. Rf3 {[%clk 0:00:03.8]}
58... Rdd2 {[%clk 0:00:01.8]} 59. Bf5 {[%clk 0:00:04.2]} 59... Kf8 {[%clk
0:00:01.9]} 60. Bxc2 {[%clk 0:00:04.4]} 60... Rxc2 {[%clk 0:00:02.8]} 61. Rxf6+
{[%clk 0:00:04.8]} 61... Ke7 {[%clk 0:00:03.7]} 62. Re6+ {[%clk 0:00:05.4]}
62... Kf7 {[%clk 0:00:04.2]} 63. Rd6 {[%clk 0:00:05.4]} 63... Rd2 {[%clk
0:00:04.7]} 64. Rd7+ {[%clk 0:00:06.3]} 64... Kf6 {[%clk 0:00:04.5]} 65. c7
{[%clk 0:00:06.5]} 65... Ke5 {[%clk 0:00:05.4]} 66. c8=Q {[%clk 0:00:06.6]}
66... Kd4 {[%clk 0:00:06.3]} 67. Qc6 {[%clk 0:00:06.8]} 67... Kd3 {[%clk
0:00:06.8]} 68. Qe6 {[%clk 0:00:06.8]} 68... Kd4 {[%clk 0:00:07.1]} 69. Rc7
{[%clk 0:00:07]} 69... Rd3 {[%clk 0:00:06.7]} 70. d6 {[%clk 0:00:06.7]} 70...
Rd2 {[%clk 0:00:07.1]} 71. d7 {[%clk 0:00:07.2]} 71... Rxf2+ {[%clk 0:00:07.2]}
72. Kxf2 {[%clk 0:00:07.5]} 72... Kd3 {[%clk 0:00:08.1]} 73. Kf3 {[%clk
0:00:07.8]} 73... Kd4 {[%clk 0:00:08.3]} 74. Kf4 {[%clk 0:00:07.8]} 74... Kd3
{[%clk 0:00:08.8]} 75. Kf5 {[%clk 0:00:08.6]} 75... Kd4 {[%clk 0:00:09.2]} 76.
Kf6 {[%clk 0:00:09.5]} 76... Kd3 {[%clk 0:00:09.7]} 77. Ke7 {[%clk 0:00:10.4]}
77... Kd4 {[%clk 0:00:10.2]} 78. Kd6 {[%clk 0:00:11.3]} 78... Kd3 {[%clk
0:00:10.9]} 79. d8=Q {[%clk 0:00:12.2]} 79... Kd4 {[%clk 0:00:11.6]} 80. Ke7#
{[%clk 0:00:13.1]} 1-0

[Event "*** SCC Grand Prix: Titled Tuesday Blitz"]
[Site "Chess.com"]
[Date "2020.09.08"]
[Round "2"]
[White "Jenia84"]
[Black "biostatistician"]
[Result "0-1"]
[WhiteElo "2308"]
[BlackElo "2613"]
[TimeControl "180+1"]
[EndTime "10:19:29 PDT"]
[Termination "biostatistician won on time"]

1. Nf3 {[%clk 0:03:00.9]} 1... Nf6 {[%clk 0:02:59.7]} 2. b3 {[%clk 0:03:00.1]}
2... d5 {[%clk 0:02:57.5]} 3. Bb2 {[%clk 0:02:57.8]} 3... Bg4 {[%clk 0:02:57.9]}
4. e3 {[%clk 0:02:57.9]} 4... e6 {[%clk 0:02:56.6]} 5. c4 {[%clk 0:02:55.8]}
5... Bd6 {[%clk 0:02:55.2]} 6. Be2 {[%clk 0:02:55.1]} 6... O-O {[%clk
0:02:55.2]} 7. Ne5 {[%clk 0:02:51.7]} 7... Bxe2 {[%clk 0:02:53.4]} 8. Qxe2
{[%clk 0:02:51.6]} 8... Nbd7 {[%clk 0:02:54.3]} 9. Nxd7 {[%clk 0:02:43]} 9...
Nxd7 {[%clk 0:02:51.3]} 10. O-O {[%clk 0:02:43.4]} 10... c6 {[%clk 0:02:48.5]}
11. d3 {[%clk 0:02:32.8]} 11... Be5 {[%clk 0:02:45]} 12. Bxe5 {[%clk 0:02:28.8]}
12... Nxe5 {[%clk 0:02:45]} 13. d4 {[%clk 0:02:28.9]} 13... Ng6 {[%clk
0:02:39.3]} 14. cxd5 {[%clk 0:02:21.7]} 14... exd5 {[%clk 0:02:38]} 15. Nd2
{[%clk 0:02:21.3]} 15... f5 {[%clk 0:02:38.3]} 16. g3 {[%clk 0:02:13.8]} 16...
a5 {[%clk 0:02:28.4]} 17. Rfc1 {[%clk 0:02:12.1]} 17... Qd6 {[%clk 0:02:27.6]}
18. a3 {[%clk 0:02:08.3]} 18... Ra6 {[%clk 0:02:22.6]} 19. Qd3 {[%clk
0:02:02.8]} 19... Ne7 {[%clk 0:02:21.5]} 20. Rc5 {[%clk 0:01:53.4]} 20... Qe6
{[%clk 0:02:08.8]} 21. Rb1 {[%clk 0:01:49.5]} 21... Rfa8 {[%clk 0:02:07.3]} 22.
b4 {[%clk 0:01:35.3]} 22... axb4 {[%clk 0:02:08.2]} 23. axb4 {[%clk 0:01:35.3]}
23... Ra3 {[%clk 0:02:08.4]} 24. Rc3 {[%clk 0:01:35]} 24... Ra2 {[%clk 0:00:57]}
25. b5 {[%clk 0:01:27.7]} 25... R8a7 {[%clk 0:00:55.7]} 26. Nf3 {[%clk
0:01:05.3]} 26... Ra1 {[%clk 0:00:41.9]} 27. Ne5 {[%clk 0:00:38.4]} 27... Ng6
{[%clk 0:00:19.4]} 28. Nxg6 {[%clk 0:00:35.2]} 28... Qxg6 {[%clk 0:00:17.2]} 29.
bxc6 {[%clk 0:00:32]} 29... bxc6 {[%clk 0:00:17.6]} 30. Kg2 {[%clk 0:00:25.3]}
30... Qe6 {[%clk 0:00:14.1]} 31. Rcc1 {[%clk 0:00:23]} 31... Rxb1 {[%clk
0:00:13.7]} 32. Rxb1 {[%clk 0:00:20.9]} 32... Qe4+ {[%clk 0:00:13]} 33. Qxe4
{[%clk 0:00:20.3]} 33... fxe4 {[%clk 0:00:13.8]} 34. Rc1 {[%clk 0:00:20.1]}
34... Rc7 {[%clk 0:00:14.2]} 35. f3 {[%clk 0:00:13.7]} 35... exf3+ {[%clk
0:00:15.1]} 36. Kxf3 {[%clk 0:00:14.6]} 36... Kf7 {[%clk 0:00:16]} 37. e4 {[%clk
0:00:14.5]} 37... Ke6 {[%clk 0:00:12.4]} 38. Rc5 {[%clk 0:00:09.4]} 38... dxe4+
{[%clk 0:00:10.8]} 39. Kxe4 {[%clk 0:00:09.5]} 39... Kd6 {[%clk 0:00:11.5]} 40.
Rg5 {[%clk 0:00:07.5]} 40... g6 {[%clk 0:00:11.8]} 41. Rc5 {[%clk 0:00:06.9]}
41... Re7+ {[%clk 0:00:11.8]} 42. Kd3 {[%clk 0:00:07]} 42... Rf7 {[%clk
0:00:12]} 43. Ke3 {[%clk 0:00:06.1]} 43... Rf1 {[%clk 0:00:12]} 44. h4 {[%clk
0:00:06.4]} 44... Rg1 {[%clk 0:00:11.8]} 45. Kf2 {[%clk 0:00:05.4]} 45... Rd1
{[%clk 0:00:12.1]} 46. Ke3 {[%clk 0:00:05.6]} 46... Ra1 {[%clk 0:00:12.4]} 47.
Rc3 {[%clk 0:00:04.9]} 47... Ra2 {[%clk 0:00:11.8]} 48. Kf4 {[%clk 0:00:04.7]}
48... Ra4 {[%clk 0:00:11.9]} 49. Ke3 {[%clk 0:00:03.1]} 49... Kd5 {[%clk
0:00:11]} 50. Rc5+ {[%clk 0:00:03]} 50... Kd6 {[%clk 0:00:11.4]} 51. Rc3 {[%clk
0:00:03.5]} 51... Rb4 {[%clk 0:00:12]} 52. Rc5 {[%clk 0:00:03.1]} 52... Rb3+
{[%clk 0:00:12.2]} 53. Kf4 {[%clk 0:00:03.4]} 53... Rd3 {[%clk 0:00:12.7]} 54.
Rc4 {[%clk 0:00:03.4]} 54... Kd5 {[%clk 0:00:11.3]} 55. Rc5+ {[%clk 0:00:03.7]}
55... Kd6 {[%clk 0:00:11.8]} 56. Rc4 {[%clk 0:00:03.9]} 56... h6 {[%clk
0:00:12.3]} 57. g4 {[%clk 0:00:03.5]} 57... Rh3 {[%clk 0:00:11.7]} 58. h5 {[%clk
0:00:03.3]} 58... gxh5 {[%clk 0:00:11.7]} 59. gxh5 {[%clk 0:00:03.1]} 59... Rxh5
{[%clk 0:00:12.6]} 60. Kg4 {[%clk 0:00:02.9]} 60... Rg5+ {[%clk 0:00:12.5]} 61.
Kf4 {[%clk 0:00:03]} 61... Rg6 {[%clk 0:00:12.6]} 62. Rc1 {[%clk 0:00:03.1]}
62... Kd5 {[%clk 0:00:12.9]} 63. Ke3 {[%clk 0:00:02.1]} 63... Rg3+ {[%clk
0:00:12.4]} 64. Ke2 {[%clk 0:00:01.2]} 64... Rg6 {[%clk 0:00:12.6]} 0-1